[Event "*** Titled Tuesday Blitz"]
[Site "Chess.com"]
[Date "2019.08.06"]
[Round "8"]
[White "Marcus_Harvey"]
[Black "GadimbayliA"]
[Result "0-1"]
[WhiteElo "2768"]
[BlackElo "2888"]
[TimeControl "180+2"]
[EndTime "14:53:08 PDT"]
[Termination "GadimbayliA won by resignation"]

1. d4 {[%clk 0:03:01.9]} 1... Nf6 {[%clk 0:03:00.2]} 2. Nf3 {[%clk 0:03:03.2]}
2... b6 {[%clk 0:03:01.3]} 3. c4 {[%clk 0:03:03.7]} 3... Bb7 {[%clk 0:03:02.5]}
4. g3 {[%clk 0:03:05.3]} 4... e6 {[%clk 0:03:03]} 5. Bg2 {[%clk 0:03:06.5]} 5...
g6 {[%clk 0:03:03.5]} 6. O-O {[%clk 0:03:07]} 6... Bg7 {[%clk 0:03:04.8]} 7. Nc3
{[%clk 0:03:08.2]} 7... O-O {[%clk 0:03:05.9]} 8. Qc2 {[%clk 0:03:07.9]} 8... d5
{[%clk 0:03:06.8]} 9. Ne5 {[%clk 0:03:07.3]} 9... c6 {[%clk 0:02:53.7]} 10. Rd1
{[%clk 0:03:04]} 10... Nbd7 {[%clk 0:02:50.3]} 11. e4 {[%clk 0:02:56.4]} 11...
Rc8 {[%clk 0:02:40.7]} 12. Bg5 {[%clk 0:02:48.3]} 12... h6 {[%clk 0:02:37.2]}
13. Nxd7 {[%clk 0:02:40.6]} 13... Qxd7 {[%clk 0:02:39.1]} 14. Bxf6 {[%clk
0:02:16.8]} 14... Bxf6 {[%clk 0:02:41]} 15. Qb3 {[%clk 0:02:15.2]} 15... dxc4
{[%clk 0:02:37.2]} 16. Qxc4 {[%clk 0:02:15]} 16... c5 {[%clk 0:02:39.1]} 17. d5
{[%clk 0:02:01.2]} 17... Bd4 {[%clk 0:02:38.7]} 18. Rd2 {[%clk 0:01:46.3]} 18...
Rcd8 {[%clk 0:02:33.8]} 19. Rad1 {[%clk 0:01:37.8]} 19... exd5 {[%clk
0:02:34.2]} 20. exd5 {[%clk 0:01:35]} 20... Rfe8 {[%clk 0:02:35.3]} 21. Nb5
{[%clk 0:01:28.4]} 21... Ba6 {[%clk 0:02:36.3]} 22. a4 {[%clk 0:01:27.9]} 22...
Bxb5 {[%clk 0:02:37.5]} 23. axb5 {[%clk 0:01:25.9]} 23... Qd6 {[%clk 0:02:38.7]}
24. b3 {[%clk 0:01:23.6]} 24... Re7 {[%clk 0:02:37.3]} 25. b4 {[%clk 0:01:21.6]}
25... Rde8 {[%clk 0:02:35.7]} 26. bxc5 {[%clk 0:01:21.8]} 26... bxc5 {[%clk
0:02:34.4]} 27. h4 {[%clk 0:01:18.7]} 27... Qxg3 {[%clk 0:02:28.4]} 28. Rxd4
{[%clk 0:00:51.1]} 28... Re1+ {[%clk 0:02:19]} 29. Rxe1 {[%clk 0:00:32.9]} 29...
Rxe1+ {[%clk 0:02:20.9]} 30. Qf1 {[%clk 0:00:34.1]} 30... Rxf1+ {[%clk
0:02:22.1]} 31. Kxf1 {[%clk 0:00:36]} 31... Qb3 {[%clk 0:02:14.6]} 32. Rd2
{[%clk 0:00:35.9]} 32... Qb1+ {[%clk 0:02:13.2]} 33. Ke2 {[%clk 0:00:36.6]}
33... Qxb5+ {[%clk 0:02:15.1]} 34. Kd1 {[%clk 0:00:32.7]} 34... Kf8 {[%clk
0:02:12.8]} 35. d6 {[%clk 0:00:33.9]} 35... Ke8 {[%clk 0:02:08.6]} 36. d7+
{[%clk 0:00:34.8]} 36... Kd8 {[%clk 0:02:09.4]} 37. Bf3 {[%clk 0:00:29.7]} 37...
c4 {[%clk 0:02:03.5]} 38. Rc2 {[%clk 0:00:15.2]} 38... Qb1+ {[%clk 0:01:58.7]}
39. Kd2 {[%clk 0:00:15.9]} 39... Qb4+ {[%clk 0:01:59.7]} 40. Ke3 {[%clk
0:00:13.8]} 40... Qb3+ {[%clk 0:01:59.5]} 0-1

[Event "*** Titled Tuesday Blitz"]
[Site "Chess.com"]
[Date "2019.08.06"]
[Round "8"]
[White "daro94"]
[Black "adriangschnitzer"]
[Result "1-0"]
[WhiteElo "2687"]
[BlackElo "2567"]
[TimeControl "180+2"]
[EndTime "14:53:29 PDT"]
[Termination "daro94 won by resignation"]

1. d4 {[%clk 0:03:01.9]} 1... Nf6 {[%clk 0:02:59.9]} 2. Nf3 {[%clk 0:03:03.8]}
2... c5 {[%clk 0:03:00.5]} 3. d5 {[%clk 0:03:04.7]} 3... b5 {[%clk 0:03:01.6]}
4. Bg5 {[%clk 0:03:04.7]} 4... d6 {[%clk 0:03:01.4]} 5. Bxf6 {[%clk 0:03:05.6]}
5... exf6 {[%clk 0:03:03.3]} 6. a4 {[%clk 0:03:06.9]} 6... b4 {[%clk 0:03:02.8]}
7. e4 {[%clk 0:03:06.6]} 7... g6 {[%clk 0:03:02.5]} 8. Bb5+ {[%clk 0:03:07]}
8... Bd7 {[%clk 0:03:02.5]} 9. Bxd7+ {[%clk 0:03:07.2]} 9... Qxd7 {[%clk
0:03:04.4]} 10. Nbd2 {[%clk 0:03:08.4]} 10... Bg7 {[%clk 0:03:04.7]} 11. O-O
{[%clk 0:03:10]} 11... O-O {[%clk 0:03:05.3]} 12. Nc4 {[%clk 0:03:11.4]} 12...
Qe7 {[%clk 0:03:00.4]} 13. Re1 {[%clk 0:03:12.9]} 13... Nd7 {[%clk 0:03:00.9]}
14. Qd3 {[%clk 0:03:12.6]} 14... Ne5 {[%clk 0:03:00.8]} 15. Nfxe5 {[%clk
0:03:14]} 15... fxe5 {[%clk 0:03:02.3]} 16. c3 {[%clk 0:03:12.7]} 16... a5
{[%clk 0:03:01.5]} 17. Rac1 {[%clk 0:03:04]} 17... f5 {[%clk 0:03:00.8]} 18.
cxb4 {[%clk 0:03:01.1]} 18... axb4 {[%clk 0:02:58.4]} 19. b3 {[%clk 0:03:02.4]}
19... Bh6 {[%clk 0:02:55.9]} 20. Rc2 {[%clk 0:03:03.2]} 20... f4 {[%clk
0:02:51]} 21. Qh3 {[%clk 0:03:02.7]} 21... Bg7 {[%clk 0:02:41]} 22. Qe6+ {[%clk
0:03:03.4]} 22... Qxe6 {[%clk 0:02:36.3]} 23. dxe6 {[%clk 0:03:05.3]} 23... Ra6
{[%clk 0:02:23.6]} 24. Rd1 {[%clk 0:03:04.8]} 24... Re8 {[%clk 0:02:23.7]} 25.
Nxd6 {[%clk 0:03:01.1]} 25... Rxe6 {[%clk 0:02:16.3]} 26. Nc4 {[%clk 0:03:02.2]}
26... Bf8 {[%clk 0:02:13.4]} 27. f3 {[%clk 0:03:02.9]} 27... Kf7 {[%clk
0:02:12.3]} 28. Rd7+ {[%clk 0:03:03.1]} 28... Be7 {[%clk 0:02:13]} 29. Rcd2
{[%clk 0:03:04.6]} 29... Kf6 {[%clk 0:02:09.2]} 30. R2d5 {[%clk 0:03:05.8]}
30... h5 {[%clk 0:02:06.9]} 31. Kf1 {[%clk 0:03:07]} 31... g5 {[%clk 0:02:07]}
32. h3 {[%clk 0:03:08.5]} 32... Ra8 {[%clk 0:01:59.5]} 33. Ke2 {[%clk
0:03:09.8]} 33... Rg8 {[%clk 0:01:58.3]} 34. Kd3 {[%clk 0:02:56.4]} 34... g4
{[%clk 0:01:58.9]} 35. hxg4 {[%clk 0:02:58.3]} 35... hxg4 {[%clk 0:02:00.3]} 36.
Nxe5 {[%clk 0:02:55.8]} 36... gxf3 {[%clk 0:01:42.1]} 37. gxf3 {[%clk
0:02:53.1]} 37... Rg3 {[%clk 0:01:10.2]} 38. Ng4+ {[%clk 0:02:50.4]} 38... Kg6
{[%clk 0:01:02.9]} 39. Kc4 {[%clk 0:02:34.3]} 39... Rxg4 {[%clk 0:00:43.6]} 40.
fxg4 {[%clk 0:02:35.2]} 40... Rxe4+ {[%clk 0:00:44.7]} 41. Kb5 {[%clk
0:02:17.6]} 41... f3 {[%clk 0:00:35]} 42. Rf5 {[%clk 0:02:14.8]} 42... Re3
{[%clk 0:00:35]} 43. Rxe7 {[%clk 0:01:58.3]} 43... Rxe7 {[%clk 0:00:36.9]} 44.
Rxf3 {[%clk 0:01:59.4]} 44... Re5 {[%clk 0:00:35.4]} 45. Kc4 {[%clk 0:01:54.5]}
45... Re4+ {[%clk 0:00:24.8]} 46. Kxc5 {[%clk 0:01:53.7]} 46... Rxg4 {[%clk
0:00:26.7]} 47. Kb5 {[%clk 0:01:51.9]} 1-0

[Event "*** Titled Tuesday Blitz"]
[Site "Chess.com"]
[Date "2019.08.06"]
[Round "8"]
[White "Orest_Vovk"]
[Black "Jospem"]
[Result "0-1"]
[WhiteElo "2239"]
[BlackElo "2903"]
[TimeControl "180+2"]
[EndTime "14:53:38 PDT"]
[Termination "Jospem won by checkmate"]

1. g4 {[%clk 0:03:01.9]} 1... Na6 {[%clk 0:03:01.9]} 2. Bg2 {[%clk 0:03:02]}
2... Nb8 {[%clk 0:03:03.8]} 3. g5 {[%clk 0:03:01.4]} 3... g6 {[%clk 0:03:05.3]}
4. h4 {[%clk 0:03:02.2]} 4... Bg7 {[%clk 0:03:07.2]} 5. h5 {[%clk 0:03:03.1]}
5... e5 {[%clk 0:03:08.8]} 6. h6 {[%clk 0:02:54.3]} 6... Bf8 {[%clk 0:03:09.8]}
7. d4 {[%clk 0:02:55.2]} 7... d5 {[%clk 0:03:05.1]} 8. dxe5 {[%clk 0:02:54.1]}
8... Be6 {[%clk 0:03:06.6]} 9. e4 {[%clk 0:02:37.9]} 9... d4 {[%clk 0:03:06.7]}
10. Ne2 {[%clk 0:02:32.4]} 10... Bc5 {[%clk 0:03:03.6]} 11. f4 {[%clk
0:02:04.6]} 11... Ne7 {[%clk 0:03:03.6]} 12. Nd2 {[%clk 0:01:42.2]} 12... Nbc6
{[%clk 0:03:02.9]} 13. Nb3 {[%clk 0:01:20.5]} 13... Bb6 {[%clk 0:03:03.4]} 14.
a3 {[%clk 0:01:00.4]} 14... a5 {[%clk 0:03:03.1]} 15. Qd3 {[%clk 0:00:58.5]}
15... a4 {[%clk 0:02:59.2]} 16. Nd2 {[%clk 0:00:59.3]} 16... Bc5 {[%clk
0:03:00.9]} 17. O-O {[%clk 0:00:54.3]} 17... Qd7 {[%clk 0:03:01]} 18. Nf3 {[%clk
0:00:51.3]} 18... b5 {[%clk 0:02:59.2]} 19. b3 {[%clk 0:00:44.9]} 19... axb3
{[%clk 0:02:56.5]} 20. cxb3 {[%clk 0:00:46.8]} 20... b4 {[%clk 0:02:56.4]} 21.
a4 {[%clk 0:00:46.5]} 21... Na5 {[%clk 0:02:57.7]} 22. Rb1 {[%clk 0:00:43.6]}
22... Nxb3 {[%clk 0:02:41.6]} 23. Rxb3 {[%clk 0:00:43.8]} 23... Bxb3 {[%clk
0:02:43.5]} 24. Qxb3 {[%clk 0:00:26.5]} 24... d3+ {[%clk 0:02:45.4]} 25. Ned4
{[%clk 0:00:17]} 25... Bxd4+ {[%clk 0:02:46.4]} 26. Nxd4 {[%clk 0:00:18.8]}
26... Qxd4+ {[%clk 0:02:47]} 27. Kh1 {[%clk 0:00:16.2]} 27... d2 {[%clk
0:02:45.1]} 28. Bb2 {[%clk 0:00:14.7]} 28... Qc5 {[%clk 0:02:09]} 29. e6 {[%clk
0:00:13.2]} 29... Rf8 {[%clk 0:02:10.1]} 30. Bg7 {[%clk 0:00:10.9]} 30... Rd8
{[%clk 0:02:08.9]} 31. Bxf8 {[%clk 0:00:11.2]} 31... Kxf8 {[%clk 0:02:10.8]} 32.
exf7 {[%clk 0:00:11.4]} 32... Qc3 {[%clk 0:02:10]} 33. Qd1 {[%clk 0:00:08.7]}
33... b3 {[%clk 0:01:46.3]} 34. f5 {[%clk 0:00:09.7]} 34... b2 {[%clk
0:01:46.9]} 35. f6 {[%clk 0:00:08]} 35... Nc6 {[%clk 0:01:45.4]} 36. e5 {[%clk
0:00:06.4]} 36... Nxe5 {[%clk 0:01:44]} 37. Qe2 {[%clk 0:00:05.8]} 37... d1=Q
{[%clk 0:01:39.2]} 38. Rxd1 {[%clk 0:00:06.4]} 38... Rxd1+ {[%clk 0:01:40.2]}
39. Kh2 {[%clk 0:00:05.5]} 39... b1=Q {[%clk 0:01:33.7]} 40. Qa6 {[%clk
0:00:05.9]} 40... Ng4# {[%clk 0:01:34]} 0-1

[Event "*** Titled Tuesday Blitz"]
[Site "Chess.com"]
[Date "2019.08.06"]
[Round "8"]
[White "IMDT02"]
[Black "Schachspielerr"]
[Result "0-1"]
[WhiteElo "2518"]
[BlackElo "2658"]
[TimeControl "180+2"]
[EndTime "14:53:41 PDT"]
[Termination "Schachspielerr won on time"]

1. d4 {[%clk 0:03:01.9]} 1... Nf6 {[%clk 0:03:01]} 2. c4 {[%clk 0:03:01.6]} 2...
c6 {[%clk 0:03:02.3]} 3. Nf3 {[%clk 0:02:58.8]} 3... d5 {[%clk 0:03:03.7]} 4. e3
{[%clk 0:03:00.3]} 4... Bf5 {[%clk 0:03:01.5]} 5. Nc3 {[%clk 0:02:58.3]} 5... e6
{[%clk 0:03:01.8]} 6. b3 {[%clk 0:02:58.8]} 6... Bb4 {[%clk 0:03:02.1]} 7. Bd2
{[%clk 0:03:00]} 7... Ba3 {[%clk 0:02:54.6]} 8. Bc1 {[%clk 0:02:51.6]} 8... Bb4
{[%clk 0:02:51.7]} 9. Bd2 {[%clk 0:02:51.8]} 9... O-O {[%clk 0:02:39.8]} 10. a3
{[%clk 0:02:46.2]} 10... Bd6 {[%clk 0:02:31.4]} 11. Be2 {[%clk 0:02:42.3]} 11...
h6 {[%clk 0:02:32.3]} 12. O-O {[%clk 0:02:42.7]} 12... Nbd7 {[%clk 0:02:33.8]}
13. b4 {[%clk 0:02:19]} 13... dxc4 {[%clk 0:02:20]} 14. Bxc4 {[%clk 0:02:17.8]}
14... a5 {[%clk 0:02:21.6]} 15. b5 {[%clk 0:02:16.7]} 15... c5 {[%clk
0:02:16.8]} 16. dxc5 {[%clk 0:02:06.5]} 16... Nxc5 {[%clk 0:02:15.8]} 17. Nd4
{[%clk 0:02:05.5]} 17... Bg6 {[%clk 0:02:11]} 18. a4 {[%clk 0:01:52.3]} 18...
Rc8 {[%clk 0:02:04.5]} 19. Be2 {[%clk 0:01:42.3]} 19... Qc7 {[%clk 0:01:50.9]}
20. h3 {[%clk 0:01:38.4]} 20... Rfd8 {[%clk 0:01:48.9]} 21. Rc1 {[%clk
0:01:14.1]} 21... Bh2+ {[%clk 0:01:49.5]} 22. Kh1 {[%clk 0:01:13.3]} 22... Be5
{[%clk 0:01:51.4]} 23. Nf3 {[%clk 0:01:03]} 23... Bd3 {[%clk 0:01:26.6]} 24.
Bxd3 {[%clk 0:00:42.4]} 24... Nxd3 {[%clk 0:01:19.2]} 25. Nd5 {[%clk 0:00:36.2]}
25... Qd6 {[%clk 0:01:19.7]} 26. Rxc8 {[%clk 0:00:32.2]} 26... Rxc8 {[%clk
0:01:20.3]} 27. Nxe5 {[%clk 0:00:27.6]} 27... Qxd5 {[%clk 0:01:12.3]} 28. Nxd3
{[%clk 0:00:25.4]} 28... Qxd3 {[%clk 0:01:14.2]} 29. Bxa5 {[%clk 0:00:27.1]}
29... Qc4 {[%clk 0:01:10.1]} 30. Kg1 {[%clk 0:00:18.9]} 30... Ra8 {[%clk
0:01:08.1]} 31. Bd8 {[%clk 0:00:08.4]} 31... Nd5 {[%clk 0:01:06.4]} 32. b6
{[%clk 0:00:04]} 32... Rxd8 {[%clk 0:01:06.3]} 0-1

[Event "*** Titled Tuesday Blitz"]
[Site "Chess.com"]
[Date "2019.08.06"]
[Round "8"]
[White "vova-79"]
[Black "EugeneRougon"]
[Result "0-1"]
[WhiteElo "2458"]
[BlackElo "2641"]
[TimeControl "180+2"]
[EndTime "14:53:44 PDT"]
[Termination "EugeneRougon won by resignation"]

1. d4 {[%clk 0:03:01.9]} 1... d5 {[%clk 0:02:57.1]} 2. c4 {[%clk 0:03:01.3]}
2... c6 {[%clk 0:02:58.1]} 3. Nc3 {[%clk 0:03:01]} 3... Nf6 {[%clk 0:02:59.7]}
4. cxd5 {[%clk 0:03:01.8]} 4... cxd5 {[%clk 0:03:00.8]} 5. f3 {[%clk 0:03:02.8]}
5... e6 {[%clk 0:02:54.1]} 6. e4 {[%clk 0:03:02.3]} 6... Bb4 {[%clk 0:02:52.9]}
7. e5 {[%clk 0:02:58.7]} 7... Nfd7 {[%clk 0:02:53.6]} 8. f4 {[%clk 0:02:58.8]}
8... O-O {[%clk 0:02:53.9]} 9. Nf3 {[%clk 0:02:58.6]} 9... b6 {[%clk 0:02:48.8]}
10. Qa4 {[%clk 0:02:48.5]} 10... Bxc3+ {[%clk 0:02:46.3]} 11. bxc3 {[%clk
0:02:48.2]} 11... a5 {[%clk 0:02:39.5]} 12. c4 {[%clk 0:01:41.8]} 12... Bb7
{[%clk 0:02:26.2]} 13. Ba3 {[%clk 0:01:26.6]} 13... Re8 {[%clk 0:02:18.5]} 14.
c5 {[%clk 0:01:22.2]} 14... bxc5 {[%clk 0:01:21.7]} 15. dxc5 {[%clk 0:01:20.1]}
15... Bc6 {[%clk 0:01:10]} 16. Qc2 {[%clk 0:01:05.8]} 16... Na6 {[%clk
0:01:03.6]} 17. Bd3 {[%clk 0:01:03.7]} 17... h6 {[%clk 0:01:03.3]} 18. Rb1
{[%clk 0:01:03.2]} 18... Nb4 {[%clk 0:01:03]} 19. Bxb4 {[%clk 0:01:02.5]} 19...
axb4 {[%clk 0:01:04.9]} 20. Rxb4 {[%clk 0:01:01.9]} 20... Qa5 {[%clk 0:01:05.9]}
21. Qd2 {[%clk 0:00:57.6]} 21... Nxc5 {[%clk 0:01:06.3]} 22. Bb1 {[%clk
0:00:55.4]} 22... Ne4 {[%clk 0:00:55.5]} 23. Bxe4 {[%clk 0:00:38.9]} 23... dxe4
{[%clk 0:00:57.4]} 24. Nd4 {[%clk 0:00:40.1]} 24... e3 {[%clk 0:00:57.8]} 25.
Qc3 {[%clk 0:00:34.5]} 25... Bxg2 {[%clk 0:00:58.2]} 26. Rg1 {[%clk 0:00:35.1]}
26... Qxa2 {[%clk 0:00:57.1]} 27. Ne2 {[%clk 0:00:28.7]} 27... Qa1+ {[%clk
0:00:55]} 28. Qc1 {[%clk 0:00:23.5]} 28... Rec8 {[%clk 0:00:55.7]} 0-1

[Event "*** Titled Tuesday Blitz"]
[Site "Chess.com"]
[Date "2019.08.06"]
[Round "8"]
[White "GelmanAlexander"]
[Black "StephenDedalus83"]
[Result "1-0"]
[WhiteElo "2583"]
[BlackElo "2784"]
[TimeControl "180+2"]
[EndTime "14:53:46 PDT"]
[Termination "GelmanAlexander won on time"]

1. d4 {[%clk 0:03:01.9]} 1... g6 {[%clk 0:02:59.8]} 2. Nc3 {[%clk 0:03:02]} 2...
Bg7 {[%clk 0:03:01.1]} 3. e4 {[%clk 0:03:03.2]} 3... a6 {[%clk 0:02:59.4]} 4. f4
{[%clk 0:03:03.3]} 4... b5 {[%clk 0:02:59.7]} 5. Nf3 {[%clk 0:03:04.2]} 5... Bb7
{[%clk 0:03:00.4]} 6. Bd3 {[%clk 0:03:05.3]} 6... d6 {[%clk 0:02:50.5]} 7. O-O
{[%clk 0:02:59.1]} 7... c5 {[%clk 0:02:51]} 8. dxc5 {[%clk 0:02:48.9]} 8... dxc5
{[%clk 0:02:51.2]} 9. e5 {[%clk 0:02:49.9]} 9... Nh6 {[%clk 0:02:51.8]} 10. Be4
{[%clk 0:01:48.9]} 10... Nc6 {[%clk 0:02:52.1]} 11. Be3 {[%clk 0:01:45.2]} 11...
c4 {[%clk 0:02:33.8]} 12. Qe1 {[%clk 0:01:28.5]} 12... Nf5 {[%clk 0:02:17]} 13.
Rd1 {[%clk 0:01:27.7]} 13... Qa5 {[%clk 0:02:00.9]} 14. Bxf5 {[%clk 0:01:21.4]}
14... gxf5 {[%clk 0:02:00.5]} 15. Qg3 {[%clk 0:01:18.8]} 15... O-O {[%clk
0:01:49.6]} 16. Nd5 {[%clk 0:01:10.6]} 16... Qxa2 {[%clk 0:01:41.6]} 17. Nh4
{[%clk 0:01:06.4]} 17... e6 {[%clk 0:01:25.9]} 18. Nf6+ {[%clk 0:01:07.5]} 18...
Kh8 {[%clk 0:01:26.9]} 19. Nf3 {[%clk 0:00:59.4]} 19... Qxb2 {[%clk 0:01:19.5]}
20. Qh4 {[%clk 0:00:58.1]} 20... h6 {[%clk 0:01:10.1]} 21. Rd7 {[%clk
0:00:41.9]} 21... Na5 {[%clk 0:00:52.5]} 22. Ng5 {[%clk 0:00:22]} 22... Qxc2
{[%clk 0:00:52.3]} 23. Bf2 {[%clk 0:00:22.9]} 23... Bc6 {[%clk 0:00:03.9]} 24.
Rxf7 {[%clk 0:00:20.7]} 1-0

[Event "*** Titled Tuesday Blitz"]
[Site "Chess.com"]
[Date "2019.08.06"]
[Round "8"]
[White "Gareth-Bale11"]
[Black "Kimster98"]
[Result "1/2-1/2"]
[WhiteElo "2743"]
[BlackElo "2611"]
[TimeControl "180+2"]
[EndTime "14:53:55 PDT"]
[Termination "Game drawn by repetition"]

1. Nf3 {[%clk 0:03:01.9]} 1... d5 {[%clk 0:03:00.8]} 2. d4 {[%clk 0:03:01.8]}
2... Nf6 {[%clk 0:03:01.9]} 3. c4 {[%clk 0:03:02.9]} 3... e6 {[%clk 0:03:03.3]}
4. Nc3 {[%clk 0:03:00]} 4... Bb4 {[%clk 0:03:04.2]} 5. Qa4+ {[%clk 0:02:57.5]}
5... Nc6 {[%clk 0:03:04.8]} 6. Bg5 {[%clk 0:02:59]} 6... h6 {[%clk 0:03:05.6]}
7. Bxf6 {[%clk 0:02:59.8]} 7... Qxf6 {[%clk 0:03:06.4]} 8. e3 {[%clk 0:03:00.3]}
8... O-O {[%clk 0:03:04]} 9. Rc1 {[%clk 0:03:01.3]} 9... Qg6 {[%clk 0:02:56.7]}
10. Qc2 {[%clk 0:02:58.3]} 10... Qxc2 {[%clk 0:02:55.4]} 11. Rxc2 {[%clk
0:03:00.2]} 11... Rd8 {[%clk 0:02:57.1]} 12. cxd5 {[%clk 0:02:59.1]} 12... exd5
{[%clk 0:02:50.5]} 13. a3 {[%clk 0:02:54.3]} 13... Bf8 {[%clk 0:02:49]} 14. Bd3
{[%clk 0:02:55.3]} 14... Ne7 {[%clk 0:02:38.5]} 15. Ke2 {[%clk 0:02:55.9]} 15...
c6 {[%clk 0:02:38.6]} 16. Rb1 {[%clk 0:02:54.8]} 16... Bg4 {[%clk 0:02:27.3]}
17. b4 {[%clk 0:02:51.8]} 17... a6 {[%clk 0:02:16.5]} 18. Na4 {[%clk 0:02:52.1]}
18... Nc8 {[%clk 0:02:11.7]} 19. h3 {[%clk 0:02:48.4]} 19... Bxf3+ {[%clk
0:02:11.9]} 20. Kxf3 {[%clk 0:02:50.3]} 20... Nd6 {[%clk 0:02:13.4]} 21. Ke2
{[%clk 0:02:34.7]} 21... Be7 {[%clk 0:01:50.3]} 22. Nc5 {[%clk 0:02:31.2]} 22...
b5 {[%clk 0:01:41.6]} 23. a4 {[%clk 0:02:29.5]} 23... Nc4 {[%clk 0:01:40.3]} 24.
Bf5 {[%clk 0:01:20.5]} 24... g6 {[%clk 0:01:21]} 25. Bd3 {[%clk 0:01:19.3]}
25... Na3 {[%clk 0:00:59.6]} 26. Rbc1 {[%clk 0:01:20.1]} 26... Nxc2 {[%clk
0:00:58.2]} 27. Rxc2 {[%clk 0:01:21.7]} 27... Bxc5 {[%clk 0:00:59]} 28. Rxc5
{[%clk 0:01:22.4]} 28... Rac8 {[%clk 0:00:59.9]} 29. a5 {[%clk 0:01:21.8]} 29...
Kf8 {[%clk 0:00:59.3]} 30. Rc1 {[%clk 0:01:18.3]} 30... Ke7 {[%clk 0:00:59.9]}
31. h4 {[%clk 0:01:12.7]} 31... Kd6 {[%clk 0:00:50.6]} 32. h5 {[%clk 0:01:09.2]}
32... g5 {[%clk 0:00:48.8]} 33. g4 {[%clk 0:01:09]} 33... Re8 {[%clk 0:00:48.1]}
34. Bf5 {[%clk 0:01:09.7]} 34... Rc7 {[%clk 0:00:48.5]} 35. Kd3 {[%clk
0:01:10.5]} 35... Ree7 {[%clk 0:00:43.6]} 36. Rc5 {[%clk 0:01:10.8]} 36... Re8
{[%clk 0:00:42.9]} 37. Kd2 {[%clk 0:01:11]} 37... Rce7 {[%clk 0:00:35.9]} 38.
Kd3 {[%clk 0:01:11.3]} 38... f6 {[%clk 0:00:26.7]} 39. Bg6 {[%clk 0:01:08.6]}
39... Rf8 {[%clk 0:00:25.5]} 40. Bf5 {[%clk 0:01:09.7]} 40... Rfe8 {[%clk
0:00:25]} 41. Bg6 {[%clk 0:01:09.5]} 41... Rf8 {[%clk 0:00:26.4]} 42. Bf5 {[%clk
0:01:10.7]} 42... Rfe8 {[%clk 0:00:27.8]} 1/2-1/2

[Event "*** Titled Tuesday Blitz"]
[Site "Chess.com"]
[Date "2019.08.06"]
[Round "8"]
[White "Manukyan_Artak"]
[Black "S-Fazulyanov"]
[Result "1-0"]
[WhiteElo "2402"]
[BlackElo "2429"]
[TimeControl "180+2"]
[EndTime "14:53:55 PDT"]
[Termination "Manukyan_Artak won by resignation"]

1. e4 {[%clk 0:02:57.4]} 1... c5 {[%clk 0:02:59.8]} 2. Nf3 {[%clk 0:02:58.1]}
2... Nc6 {[%clk 0:03:00.2]} 3. c3 {[%clk 0:02:59.3]} 3... Nf6 {[%clk 0:03:00.4]}
4. e5 {[%clk 0:03:00.4]} 4... Nd5 {[%clk 0:03:01.9]} 5. d4 {[%clk 0:03:02.3]}
5... cxd4 {[%clk 0:03:02.8]} 6. cxd4 {[%clk 0:03:04.2]} 6... d6 {[%clk
0:03:03.5]} 7. Nc3 {[%clk 0:03:05.2]} 7... dxe5 {[%clk 0:03:03.2]} 8. dxe5
{[%clk 0:03:06.1]} 8... Nxc3 {[%clk 0:03:05.1]} 9. Qxd8+ {[%clk 0:03:07.1]} 9...
Nxd8 {[%clk 0:03:06.6]} 10. bxc3 {[%clk 0:03:08.5]} 10... g6 {[%clk 0:03:08.5]}
11. Bb5+ {[%clk 0:03:00.6]} 11... Bd7 {[%clk 0:03:08.6]} 12. Bxd7+ {[%clk
0:03:00.8]} 12... Kxd7 {[%clk 0:03:10]} 13. Nd4 {[%clk 0:03:01.3]} 13... Bg7
{[%clk 0:03:08.5]} 14. f4 {[%clk 0:03:01.8]} 14... Nc6 {[%clk 0:03:05.6]} 15.
Be3 {[%clk 0:02:54.2]} 15... Na5 {[%clk 0:03:05.8]} 16. O-O-O {[%clk 0:02:51.7]}
16... Nc4 {[%clk 0:03:05.1]} 17. Bf2 {[%clk 0:01:21.2]} 17... Kc7 {[%clk
0:02:52.7]} 18. Nb5+ {[%clk 0:01:16.8]} 18... Kc6 {[%clk 0:02:53]} 19. Nd4+
{[%clk 0:01:17.8]} 19... Kc7 {[%clk 0:02:53]} 20. Nb5+ {[%clk 0:01:16.4]} 20...
Kc6 {[%clk 0:02:54.1]} 21. Nxa7+ {[%clk 0:01:10.4]} 21... Rxa7 {[%clk
0:02:35.2]} 22. Bxa7 {[%clk 0:01:10.4]} 22... Ra8 {[%clk 0:02:36.7]} 23. Bd4
{[%clk 0:01:03.1]} 23... Rxa2 {[%clk 0:02:36.7]} 24. Rhf1 {[%clk 0:00:46.4]}
24... Na3 {[%clk 0:02:33.5]} 25. Rf2 {[%clk 0:00:41.3]} 25... Ra1+ {[%clk
0:02:29.6]} 26. Kd2 {[%clk 0:00:42]} 26... Nc4+ {[%clk 0:02:30]} 27. Ke2 {[%clk
0:00:41.6]} 27... Ra3 {[%clk 0:02:29.3]} 28. Kd3 {[%clk 0:00:39.6]} 28... b5
{[%clk 0:02:27.5]} 29. g4 {[%clk 0:00:29.9]} 29... e6 {[%clk 0:02:19.7]} 30. Ke4
{[%clk 0:00:26.6]} 30... Bf8 {[%clk 0:02:16.9]} 31. f5 {[%clk 0:00:26.8]} 31...
gxf5+ {[%clk 0:02:15.3]} 32. gxf5 {[%clk 0:00:27.9]} 32... b4 {[%clk 0:02:10]}
33. cxb4 {[%clk 0:00:27.4]} 33... Bxb4 {[%clk 0:02:09.8]} 34. Rc1 {[%clk
0:00:27.3]} 34... Kb5 {[%clk 0:02:08.9]} 35. fxe6 {[%clk 0:00:27.9]} 35... fxe6
{[%clk 0:02:09]} 36. Rf6 {[%clk 0:00:26.5]} 36... Nd2+ {[%clk 0:02:06.8]} 37.
Kf4 {[%clk 0:00:25.7]} 37... Rd3 {[%clk 0:02:04]} 38. Bg1 {[%clk 0:00:21.6]}
38... Nc4 {[%clk 0:01:31]} 39. Rxe6 {[%clk 0:00:22.5]} 39... Rh3 {[%clk
0:01:19.4]} 40. Rb1 {[%clk 0:00:20.3]} 40... Nd2 {[%clk 0:01:14.6]} 41. Rb6+
{[%clk 0:00:19]} 1-0